fUSD/lending_fUSD_20250607
["ID","MTS","AMOUNT","RATE_DAILY","PERIOD"]
[364829618,1749263445951,-404.328264,0.00027321,7]
[364829620,1749263445960,-404.328264,0.00027321,7]
[364829621,1749263445970,-609.667956,0.00027321,7]
[364829622,1749263445980,-609.667956,0.00027321,7]
[364829624,1749263445990,-151.0,0.00027321,7]
[364829625,1749263445999,-350.0,0.00027322,2]
[364829626,1749263446009,-150.0,0.00027326,2]
[364829627,1749263446019,-193.193988,0.0002733,7]
[364829628,1749263446028,-151.0,0.0002733,7]
[364829629,1749263446039,-151.0,0.0002733,7]
[364829631,1749263446048,-307.314938,0.0002733,7]
[364829632,1749263446058,-307.314938,0.0002733,7]
[364829633,1749263446067,-157.990112,0.0002733,7]
[364829634,1749263446077,-539.442297,0.0002733,7]
[364829635,1749263446086,-539.442297,0.0002733,7]
[364829637,1749263446096,-155.516087,0.0002733,7]
[364829638,1749263446106,-151.0,0.0002733,7]
[364829639,1749263446115,-151.0,0.0002733,7]
[364829640,1749263446125,-202.192633,0.0002733,7]
[364829641,1749263446134,-202.192633,0.0002733,7]
[364829642,1749263446144,-151.0,0.0002733,7]
[364829643,1749263446155,-184.547478,0.0002733,7]
[364829644,1749263446164,-184.547478,0.0002733,7]
[364829645,1749263446174,-151.0,0.0002733,7]
[364829646,1749263446184,-151.0,0.0002733,7]
[364829647,1749263446194,-404.328264,0.0002733,7]
[364829648,1749263446204,-404.328264,0.0002733,7]
[364829650,1749263446214,-763.800367,0.0002733,7]
[364829651,1749263446224,-763.800367,0.0002733,7]
[364829652,1749263446234,-609.667956,0.0002733,7]
[364829653,1749263446243,-609.667956,0.0002733,7]
[364829654,1749263446252,-151.0,0.0002733,7]
[364829655,1749263446262,-917.29684842,0.00027331,2]
[364829656,1749263446272,-1729.628,0.00027332,16]
[364829657,1749263446285,-150.0,0.00027333,2]
[364829658,1749263446296,-151.0,0.0002734,7]
[364829659,1749263446306,-919.69454505,0.0002734,2]
[364829660,1749263446315,-151.0,0.0002734,7]
[364829661,1749263446326,-263.744879,0.0002734,7]
[364829662,1749263446337,-263.744879,0.0002734,7]
[364829663,1749263446348,-151.0,0.0002734,7]
[364829664,1749263446358,-151.0,0.0002734,7]
[364829665,1749263446369,-858.592124,0.0002734,7]
[364829666,1749263446380,-858.592124,0.0002734,7]
[364829667,1749263446390,-151.0,0.0002734,7]
[364829668,1749263446400,-151.0,0.0002734,7]
[364829669,1749263446410,-1221.810892,0.0002734,7]
[364829670,1749263446420,-308.41398605,0.0002734,10]
[364829671,1749263446430,-1221.810892,0.0002734,7]
[364829672,1749263446441,-253.483761,0.0002734,7]
[364829673,1749263446451,-151.85797,0.0002734,7]
[364829674,1749263446462,-253.483761,0.0002734,7]
[364829675,1749263446473,-300.0,0.0002734,10]
[364829676,1749263446483,-218.795101,0.0002734,7]
[364829677,1749263446493,-218.795101,0.0002734,7]
[364829678,1749263446503,-1005.25535,0.0002734,7]
[364829679,1749263446514,-1005.25535,0.0002734,7]
[364829680,1749263446524,-1490.709538,0.0002734,7]
[364829681,1749263446535,-151.0,0.0002734,7]
[364829682,1749263446546,-1490.709538,0.0002734,7]
[364829683,1749263446556,-252.578975,0.0002734,7]
[364829684,1749263446567,-151.0,0.0002734,7]
[364829685,1749263446577,-189.229148,0.0002734,7]
[364829686,1749263446588,-189.229148,0.0002734,7]
[364829687,1749263446600,-327.769811,0.0002734,7]
[364829688,1749263446610,-151.0,0.0002734,7]
[364829689,1749263446620,-327.769811,0.0002734,7]
[364829690,1749263446630,-151.0,0.00027341,7]
[364829691,1749263446640,-153.380532,0.00027341,7]
[364829692,1749263446652,-151.0,0.00027341,7]
[364829693,1749263446663,-690.57886,0.00027341,7]
[364829694,1749263446674,-690.57886,0.00027341,7]
[364829695,1749263446684,-151.0,0.00027341,7]
[364829697,1749263446695,-263.744879,0.00027341,7]
[364829700,1749263446706,-263.744879,0.00027341,7]
[364829701,1749263446716,-151.0,0.00027341,7]
[364829704,1749263446726,-151.0,0.00027341,7]
[364829707,1749263446737,-858.592124,0.00027341,7]
[364829710,1749263446749,-858.592124,0.00027341,7]
[364829713,1749263446760,-151.0,0.00027341,7]
[364829715,1749263446770,-151.0,0.00027341,7]
[364829717,1749263446783,-1221.810892,0.00027341,7]
[364829718,1749263446793,-1221.810892,0.00027341,7]
[364829719,1749263446803,-253.483761,0.00027341,7]
[364829720,1749263446813,-253.483761,0.00027341,7]
[364829721,1749263446824,-151.0,0.00027341,7]
[364829722,1749263446833,-218.795101,0.00027341,7]
[364829723,1749263446843,-218.795101,0.00027341,7]
[364829725,1749263446852,-1005.25535,0.00027341,7]
[364829727,1749263446862,-1005.25535,0.00027341,7]
[364829729,1749263446872,-1490.709538,0.00027341,7]
[364829730,1749263446882,-151.0,0.00027341,7]
[364829731,1749263446891,-1490.709538,0.00027341,7]
[364829732,1749263446901,-151.0,0.00027341,7]
[364829733,1749263446910,-307.314938,0.00027341,7]
[364829734,1749263446920,-307.314938,0.00027341,7]
[364829735,1749263446930,-151.0,0.00027341,7]
[364829736,1749263446941,-539.442297,0.00027341,7]
[364829737,1749263446951,-539.442297,0.00027341,7]
[364829738,1749263446961,-189.229148,0.00027341,7]
[364829739,1749263446972,-34296.1774438,0.00027341,2]
[364829740,1749263446982,-189.229148,0.00027341,7]
[364829741,1749263446992,-152.81944,0.00027341,7]
[364829742,1749263447004,-151.0,0.00027341,7]
[364829743,1749263447016,-202.192633,0.00027341,7]
[364829744,1749263447026,-202.192633,0.00027341,7]
[364829745,1749263447037,-151.0,0.00027341,7]
[364829746,1749263447048,-327.769811,0.00027341,7]
[364829747,1749263447058,-151.0,0.00027341,7]
[364829748,1749263447067,-327.769811,0.00027341,7]
[364829749,1749263447078,-184.547478,0.00027341,7]
[364829750,1749263447089,-184.547478,0.00027341,7]
[364829751,1749263447100,-5364.6544999,0.00027341,2]
[364829752,1749263447111,-151.0,0.00027341,7]
[364829753,1749263447120,-151.0,0.00027341,7]
[364829754,1749263447131,-3724.8337088,0.00027341,2]
[364829755,1749263447143,-404.328264,0.00027341,7]
[364829756,1749263447154,-1639.6479,0.00027341,7]
[364829757,1749263447166,-404.328264,0.00027341,7]
[364829758,1749263447176,-1639.6479,0.00027341,7]
[364829759,1749263447186,-151.0,0.00027341,7]
[364829760,1749263447195,-763.800367,0.00027341,7]
[364829761,1749263447205,-151.0,0.00027341,7]
[364829762,1749263447215,-763.800367,0.00027341,7]
[364829763,1749263447456,-5644.7850347,0.00027341,2]
[364829764,1749263447502,-609.667956,0.00027341,7]
[364829765,1749263447512,-609.667956,0.00027341,7]
[364829766,1749263447521,-151.0,0.00027341,7]
[364829767,1749263447532,-151.0,0.00027341,7]
[364829768,1749263447542,-151.0,0.00027341,7]
[364829769,1749263447551,-151.0,0.00027341,7]
[364829770,1749263447561,-151.0,0.00027341,7]
[364829771,1749263447570,-151.0,0.00027341,7]
[364829772,1749263447580,-151.0,0.00027341,7]
[364829773,1749263447590,-151.0,0.00027341,7]
[364829774,1749263447599,-377.632478,0.00027341,7]
[364829775,1749263447610,-151.0,0.00027341,7]
[364829776,1749263447619,-377.632478,0.00027341,7]
[364829777,1749263447629,-377.632478,0.00027341,7]
[364829778,1749263447638,-377.632478,0.00027341,7]
[364829779,1749263447647,-18692.7767017,0.00027341,2]
[364829780,1749263447656,-1458.426165,0.00027341,7]
[364829781,1749263447666,-1458.426165,0.00027341,7]
[364829782,1749263447675,-1458.426165,0.00027341,7]
[364829783,1749263447685,-1458.426165,0.00027341,7]
[364829784,1749263447695,-151.0,0.00027341,7]
[364829785,1749263447705,-548429.6333333,0.00027341,2]
[364829786,1749263447714,-150.0,0.00027342,2]
[364829787,1749263447724,-150.0,0.00027347,2]
[364829788,1749263447737,-215.61,0.00027349,2]
[364829789,1749263447747,-2000.0,0.00027349,2]
[364829790,1749263447756,-3011.04591,0.00027349,2]
[364829791,1749263447766,-151.0,0.0002735,7]
[364829792,1749263447777,-151.0,0.0002735,7]
[364829793,1749263447787,-151.0,0.0002735,7]
[364829794,1749263447796,-151.0,0.0002735,7]
[364829795,1749263447812,-151.0,0.0002735,7]
[364829796,1749263447823,-151.0,0.0002735,7]
[364829797,1749263447833,-151.0,0.0002735,7]
[364829798,1749263447844,-197.94714,0.0002735,7]
[364829799,1749263447854,-197.94714,0.0002735,7]
[364829800,1749263447863,-690.57886,0.0002735,7]
[364829801,1749263447874,-690.57886,0.0002735,7]
[364829802,1749263447883,-150.0,0.00027351,2]
[364829803,1749263447893,-150.0,0.00027357,2]
[364829804,1749263447903,-150.0,0.00027358,2]
[364829805,1749263447913,-150.0,0.00027359,2]
[364829806,1749263447923,-151.0,0.0002736,7]
[364829807,1749263447933,-151.0,0.0002736,7]
[364829808,1749263447943,-179.615682,0.0002736,7]
[364829809,1749263447954,-151.0,0.0002736,7]
[364829810,1749263447963,-151.0,0.0002736,7]
[364829811,1749263447973,-183.691151,0.0002736,7]
[364829812,1749263447983,-151.0,0.0002736,7]
[364829813,1749263447992,-197.94714,0.0002736,7]
[364829814,1749263448002,-197.94714,0.0002736,7]
[364829815,1749263448012,-211.027934,0.00027361,7]
[364829816,1749263448022,-151.0,0.00027361,7]
[364829817,1749263448032,-151.0,0.00027361,7]
[364829818,1749263448042,-151.0,0.00027361,7]
[364829819,1749263448052,-151.0,0.00027361,7]
[364829820,1749263448062,-151.0,0.00027361,7]
[364829821,1749263448072,-270.250203,0.00027361,7]
[364829822,1749263448082,-1737.074726,0.00027361,7]
[364829823,1749263448092,-270.250203,0.00027361,7]
[364829824,1749263448103,-1737.074726,0.00027361,7]
[364829825,1749263448112,-151.0,0.00027361,7]
[364829826,1749263448122,-151.0,0.00027361,7]
[364829827,1749263448132,-233.464507,0.00027361,7]
[364829828,1749263448142,-233.464507,0.00027361,7]
[364829829,1749263448152,-1278.98207,0.00027361,7]
[364829830,1749263448162,-1278.98207,0.00027361,7]
[364829831,1749263448172,-163.478458,0.00027361,7]
[364829832,1749263448182,-163.478458,0.00027361,7]
[364829833,1749263448192,-431.722796,0.00027361,7]
[364829834,1749263448203,-431.722796,0.00027361,7]
[364829835,1749263448214,-151.0,0.00027361,7]
[364829836,1749263448224,-151.0,0.00027361,7]
[364829837,1749263448233,-1068.23323,0.00027361,7]
[364829838,1749263448243,-1068.23323,0.00027361,7]
[364829839,1749263448258,-151.0,0.00027361,7]
[364829840,1749263448267,-151.0,0.00027361,7]
[364829841,1749263448277,-151.0,0.00027361,7]
[364829842,1749263448287,-151.0,0.00027361,7]
[364829843,1749263448296,-152.124274,0.00027361,7]
[364829844,1749263448307,-173.064256,0.00027361,7]
[364829845,1749263448318,-173.064256,0.00027361,7]
[364829846,1749263448328,-151.0,0.00027361,7]
[364829847,1749263448338,-323.705036,0.00027361,7]
[364829848,1749263448348,-323.705036,0.00027361,7]
[364829849,1749263448357,-360.262995,0.00027361,7]
[364829850,1749263448367,-151.0,0.00027361,7]
[364829851,1749263448377,-360.262995,0.00027361,7]
[364829852,1749263448387,-152.024157,0.00027361,7]
[364829853,1749263448397,-151.0,0.00027361,7]
[364829854,1749263448407,-151.0,0.00027361,7]
[364829855,1749263448417,-151.0,0.00027361,7]
[364829856,1749263448427,-151.0,0.00027361,7]
[364829857,1749263448438,-151.0,0.00027361,7]
[364829858,1749263448448,-150.0,0.00027364,2]
[364829859,1749263448458,-150.0,0.00027364,2]
[364829860,1749263448468,-151.949847,0.00027366,7]
[364829861,1749263448479,-151.0,0.00027366,7]
[364829862,1749263448488,-151.0,0.00027366,7]
[364829863,1749263448499,-329.636803,0.00027366,7]
[364829864,1749263448510,-329.636803,0.00027366,7]
[364829865,1749263448520,-151.0,0.00027366,7]
[364829866,1749263448531,-151.0,0.00027366,7]
[364829867,1749263448541,-273.709969,0.00027366,7]
[364829868,1749263448552,-270.250203,0.00027366,7]
[364829869,1749263448563,-1737.074726,0.00027366,7]
[364829870,1749263448573,-270.250203,0.00027366,7]
[364829871,1749263448584,-1737.074726,0.00027366,7]
[364829872,1749263448594,-151.0,0.00027366,7]
[364829873,1749263448605,-151.0,0.00027366,7]
[364829874,1749263448615,-233.464507,0.00027366,7]
[364829875,1749263448625,-233.464507,0.00027366,7]
[364829876,1749263448636,-1278.98207,0.00027366,7]
[364829877,1749263448646,-1278.98207,0.00027366,7]
[364829878,1749263448656,-163.478458,0.00027366,7]
[364829879,1749263448666,-163.478458,0.00027366,7]
[364829880,1749263448676,-431.722796,0.00027366,7]
[364829881,1749263448696,-431.722796,0.00027366,7]
[364829882,1749263448712,-151.0,0.00027366,7]
[364829883,1749263448723,-151.0,0.00027366,7]
[364829884,1749263448735,-1068.23323,0.00027366,7]
[364829885,1749263448748,-1068.23323,0.00027366,7]
[364829886,1749263448759,-151.0,0.00027366,7]
[364829887,1749263448770,-151.0,0.00027366,7]
[364829888,1749263448780,-22069.0,0.0002737,2]
[364829889,1749263448792,-792.34563421,0.0002737,30]
[364829890,1749263448803,-151.0,0.0002737,7]
[364829891,1749263448813,-151.0,0.0002737,7]
[364829892,1749263448825,-202.192633,0.0002737,7]
[364829893,1749263448836,-202.192633,0.0002737,7]
[364829894,1749263448847,-151.0,0.0002737,7]
[364829895,1749263448857,-184.547478,0.0002737,7]
[364829896,1749263448867,-184.547478,0.0002737,7]
[364829897,1749263448878,-151.0,0.0002737,7]
[364829898,1749263448888,-287.757394,0.0002737,7]
[364829899,1749263448899,-404.328264,0.0002737,7]
[364829900,1749263448909,-404.328264,0.0002737,7]
[364829901,1749263448919,-151.0,0.0002737,7]
[364829902,1749263448930,-151.0,0.0002737,7]
[364829903,1749263448940,-609.667956,0.0002737,7]
[364829904,1749263448950,-609.667956,0.0002737,7]
[364829905,1749263448960,-204.807093,0.0002737,7]
[364829906,1749263448971,-151.0,0.0002737,7]
[364829907,1749263448981,-151.0,0.0002737,7]
[364829908,1749263448991,-151.0,0.0002737,7]
[364829909,1749263449002,-151.0,0.0002737,7]
[364829910,1749263449012,-151.0,0.0002737,7]
[364829911,1749263449023,-377.632478,0.0002737,7]
[364829912,1749263449033,-377.632478,0.0002737,7]
[364829913,1749263449043,-1458.426165,0.0002737,7]
[364829914,1749263449055,-1458.426165,0.0002737,7]
[364829915,1749263449065,-151.0,0.0002737,7]
[364829916,1749263449080,-151.0,0.00027371,7]
[364829917,1749263449090,-151.0,0.00027371,7]
[364829918,1749263449101,-329.636803,0.00027371,7]
[364829919,1749263449110,-329.636803,0.00027371,7]
[364829920,1749263449120,-151.0,0.00027371,7]
[364829921,1749263449137,-151.0,0.00027371,7]
[364829922,1749263449149,-270.250203,0.00027371,7]
[364829923,1749263449160,-1737.074726,0.00027371,7]
[364829924,1749263449172,-270.250203,0.00027371,7]
[364829925,1749263449182,-1737.074726,0.00027371,7]
[364829926,1749263449193,-151.0,0.00027371,7]
[364829927,1749263449204,-151.0,0.00027371,7]
[364829928,1749263449214,-233.464507,0.00027371,7]
[364829929,1749263449225,-233.464507,0.00027371,7]
[364829930,1749263449236,-1278.98207,0.00027371,7]
[364829931,1749263449247,-1278.98207,0.00027371,7]
[364829932,1749263449257,-163.478458,0.00027371,7]
[364829933,1749263449268,-163.478458,0.00027371,7]
[364829934,1749263449279,-151.0,0.00027371,7]
[364829935,1749263449289,-431.722796,0.00027371,7]
[364829936,1749263449300,-431.722796,0.00027371,7]
[364829937,1749263449311,-151.0,0.00027371,7]
[364829938,1749263449322,-151.0,0.00027371,7]
[364829939,1749263449333,-151.0,0.00027371,7]
[364829940,1749263449344,-1068.23323,0.00027371,7]
[364829941,1749263449354,-1068.23323,0.00027371,7]
[364829942,1749263449366,-151.0,0.00027371,7]
[364829943,1749263449376,-151.0,0.00027371,7]
[364829944,1749263449386,-151.0,0.00027371,7]
[364829945,1749263449396,-151.0,0.00027371,7]
[364829946,1749263449407,-151.0,0.00027371,7]
[364829947,1749263449417,-197.94714,0.00027371,7]
[364829948,1749263449427,-197.94714,0.00027371,7]
[364829949,1749263449438,-151.0,0.00027371,6]
[364829950,1749263449448,-621.47297627,0.00027373,2]
[364829951,1749263449458,-502.1835811,0.00027373,2]
[364829952,1749263449469,-505.24150125,0.00027373,2]
[364829953,1749263449480,-195.24348751,0.00027373,2]
[364829954,1749263449490,-500.0,0.00027373,2]
[364829955,1749263449501,-500.0,0.00027373,2]
[364829956,1749263449512,-166.93116618,0.00027373,2]
[364829957,1749263449522,-502.5372634,0.00027373,2]
[364829958,1749263449532,-1000.0,0.00027373,2]
[364829959,1749263449542,-329.636803,0.00027376,7]
[364829960,1749263449553,-329.636803,0.00027376,7]
[364829961,1749263449563,-151.0,0.00027376,7]
[364829962,1749263449578,-151.0,0.00027376,7]
[364829963,1749263449588,-263.744879,0.00027376,7]
[364829964,1749263449598,-263.744879,0.00027376,7]
[364829965,1749263449609,-151.0,0.00027376,7]
[364829966,1749263449619,-151.0,0.00027376,7]
[364829967,1749263449630,-858.592124,0.00027376,7]
[364829968,1749263449640,-858.592124,0.00027376,7]
[364829969,1749263449651,-151.0,0.00027376,7]
[364829970,1749263449662,-151.0,0.00027376,7]
[364829971,1749263449672,-1221.810892,0.00027376,7]
[364829972,1749263449682,-1221.810892,0.00027376,7]
[364829973,1749263449692,-253.483761,0.00027376,7]
[364829974,1749263449703,-253.483761,0.00027376,7]
[364829975,1749263449714,-218.795101,0.00027376,7]
[364829976,1749263449724,-218.795101,0.00027376,7]
[364829977,1749263449736,-1005.25535,0.00027376,7]
[364829978,1749263449753,-1005.25535,0.00027376,7]
[364829979,1749263449763,-1490.709538,0.00027376,7]
[364829980,1749263449774,-151.0,0.00027376,7]
[364829981,1749263449784,-1490.709538,0.00027376,7]
[364829982,1749263449795,-307.314938,0.00027376,7]
[364829983,1749263449805,-307.314938,0.00027376,7]
[364829984,1749263449815,-151.0,0.00027376,7]
[364829985,1749263449825,-539.442297,0.00027376,7]
[364829986,1749263449834,-539.442297,0.00027376,7]
[364829987,1749263449844,-189.229148,0.00027376,7]
[364829988,1749263449854,-189.229148,0.00027376,7]
[364829989,1749263449864,-162.719513,0.00027376,7]
[364829990,1749263449874,-327.769811,0.00027376,7]
[364829991,1749263449884,-151.0,0.00027376,7]
[364829992,1749263449895,-327.769811,0.00027376,7]
[364829993,1749263449907,-1639.6479,0.00027376,7]
[364829994,1749263449917,-1639.6479,0.00027376,7]
[364829995,1749263449928,-763.800367,0.00027376,7]
[364829996,1749263449937,-763.800367,0.00027376,7]
[364829997,1749263449947,-122162.35644049,0.00027376,2]
[364829998,1749263449958,-300.0,0.00027377,10]
[364829999,1749263449968,-151.0,0.00027377,7]
[364830000,1749263450148,-243.548,0.00027377,7]
[364830001,1749263450158,-243.548,0.00027377,7]
[364830002,1749263450167,-151.0,0.00027377,7]
[364830003,1749263450177,-151.0,0.00027377,7]
[364830004,1749263450186,-151.0,0.00027377,7]
[364830005,1749263450196,-151.0,0.00027377,7]
[364830006,1749263450206,-151.0,0.00027377,7]
[364830007,1749263450216,-151.0,0.00027377,7]
[364830008,1749263450226,-151.0,0.00027377,7]
[364830009,1749263450236,-167.43499,0.00027377,7]
[364830010,1749263450246,-167.43499,0.00027377,7]
[364830011,1749263450256,-151.0,0.00027377,7]
[364830012,1749263450265,-151.0,0.00027377,7]
[364830013,1749263450275,-151.0,0.00027378,7]
[364830014,1749263450284,-151.0,0.00027378,7]
[364830015,1749263450294,-151.0,0.00027378,7]
[364830016,1749263450304,-151.0,0.00027378,7]
[364830017,1749263450313,-151.0,0.00027378,7]
[364830018,1749263450323,-151.0,0.00027378,7]
[364830019,1749263450333,-151.0,0.00027378,7]
[364830020,1749263450342,-234.761159,0.00027378,7]
[364830021,1749263450351,-234.761159,0.00027378,7]
[364830022,1749263450362,-151.0,0.00027378,7]
[364830023,1749263450371,-151.0,0.00027378,7]
[364830024,1749263450381,-151.0,0.00027378,7]
[364830025,1749263450390,-152.753225,0.00027378,7]
[364830026,1749263450400,-151.0,0.00027378,7]
[364830027,1749263450411,-173.064256,0.00027378,7]
[364830028,1749263450420,-173.064256,0.00027378,7]
[364830029,1749263450430,-151.0,0.00027378,7]
[364830030,1749263450440,-151.0,0.00027378,7]
[364830031,1749263450450,-323.705036,0.00027378,7]
[364830032,1749263450461,-323.705036,0.00027378,7]
[364830033,1749263450471,-360.262995,0.00027378,7]
[364830034,1749263450482,-221.624927,0.00027378,7]
[364830035,1749263450492,-360.262995,0.00027378,7]
[364830036,1749263450502,-151.0,0.00027378,7]
[364830037,1749263450513,-690.57886,0.00027378,7]
[364830038,1749263450534,-690.57886,0.00027378,7]
[364830039,1749263450546,-151.0,0.00027378,7]
[364830040,1749263450558,-263.744879,0.00027378,7]
[364830041,1749263450568,-263.744879,0.00027378,7]
[364830042,1749263450577,-151.0,0.00027378,7]
[364830043,1749263450587,-151.0,0.00027378,7]
[364830044,1749263450596,-151.0,0.00027378,7]
[364830045,1749263450607,-232.622616,0.00027378,7]
[364830046,1749263450618,-858.592124,0.00027378,7]
[364830047,1749263450627,-858.592124,0.00027378,7]
[364830048,1749263450640,-151.0,0.00027378,7]
[364830049,1749263450651,-151.0,0.00027378,7]
[364830050,1749263450661,-151.0,0.00027378,7]
[364830051,1749263450674,-158.55243697,0.00027378,2]
[364830052,1749263450685,-1221.810892,0.00027378,7]
[364830053,1749263450695,-1221.810892,0.00027378,7]
[364830054,1749263450705,-253.483761,0.00027378,7]
[364830055,1749263450715,-253.483761,0.00027378,7]
[364830056,1749263450726,-151.0,0.00027378,7]
[364830057,1749263450741,-218.795101,0.00027378,7]
[364830058,1749263450753,-218.795101,0.00027378,7]
[364830059,1749263450762,-1005.25535,0.00027378,7]
[364830060,1749263450775,-151.0,0.00027378,7]
[364830061,1749263450784,-1005.25535,0.00027378,7]
[364830062,1749263450796,-151.0,0.00027378,7]
[364830063,1749263450806,-1490.709538,0.00027378,7]
[364830064,1749263450817,-151.0,0.00027378,7]
[364830065,1749263450829,-1490.709538,0.00027378,7]
[364830066,1749263450839,-151.0,0.00027378,7]
[364830067,1749263450851,-307.314938,0.00027378,7]
[364830068,1749263450862,-307.314938,0.00027378,7]
[364830069,1749263450872,-153.360077,0.00027378,7]
[364830070,1749263450881,-539.442297,0.00027378,7]
[364830071,1749263450891,-539.442297,0.00027378,7]
[364830072,1749263450903,-189.229148,0.00027378,7]
[364830073,1749263450915,-29279.0073526,0.00027378,2]
[364830074,1749263450926,-189.229148,0.00027378,7]
[364830075,1749263450937,-202.192633,0.00027378,7]
[364830076,1749263450947,-202.192633,0.00027378,7]
[364830077,1749263450963,-151.0,0.00027378,7]
[364830078,1749263450973,-327.769811,0.00027378,7]
[364830079,1749263450983,-151.0,0.00027378,7]
[364830080,1749263450993,-150.0,0.00027378,2]
[364830081,1749263451003,-327.769811,0.00027378,7]
[364830082,1749263451013,-184.547478,0.00027378,7]
[364830083,1749263451022,-184.547478,0.00027378,7]
[364830084,1749263451032,-4579.8619629,0.00027378,2]
[364830085,1749263451041,-151.0,0.00027378,7]
[364830086,1749263451051,-151.0,0.00027378,2]
[364830087,1749263451060,-3181.7313663,0.00027378,2]
[364830088,1749263451070,-404.328264,0.00027378,7]
[364830089,1749263451080,-1639.6479,0.00027378,7]
[364830090,1749263451090,-1639.6479,0.00027378,7]
[364830091,1749263451100,-404.328264,0.00027378,7]
[364830092,1749263451110,-151.0,0.00027378,7]
[364830093,1749263451119,-763.800367,0.00027378,7]
[364830094,1749263451129,-151.0,0.00027378,7]
[364830095,1749263451138,-763.800367,0.00027378,7]
[364830096,1749263451149,-4824.6664958,0.00027378,2]
[364830097,1749263451159,-609.667956,0.00027378,7]
[364830098,1749263451168,-609.667956,0.00027378,7]
[364830099,1749263451178,-151.0,0.00027378,7]
[364830100,1749263451187,-151.0,0.00027378,7]
[364830101,1749263451196,-151.0,0.00027378,7]
[364830102,1749263451207,-151.0,0.00027378,7]
[364830103,1749263451216,-151.0,0.00027378,7]
[364830104,1749263451226,-377.632478,0.00027378,7]
[364830105,1749263451235,-377.632478,0.00027378,7]
[364830106,1749263451245,-15996.4273258,0.00027378,2]
[364830107,1749263451255,-1458.426165,0.00027378,7]
[364830108,1749263451264,-1458.426165,0.00027378,7]
[364830109,1749263451274,-151.0,0.00027378,7]
[364830110,1749263451284,-469321.1133333,0.00027378,2]
[364830111,1749263451294,-1000.0,0.0002738,7]
[364830112,1749263451303,-150.0,0.0002738,2]
[364830113,1749263451313,-669.62447015,0.00027385,2]
[364830114,1749263451323,-669.26835067,0.00027385,2]
[364830115,1749263451333,-318.11274148,0.00027385,10]
[364830116,1749263451342,-151.0,0.00027385,7]
[364830117,1749263451352,-151.0,0.00027385,7]
[364830118,1749263451362,-1053.581636,0.00027385,7]
[364830119,1749263451371,-1053.581636,0.00027385,7]
[364830120,1749263451381,-151.0,0.00027385,7]
[364830121,1749263451391,-151.0,0.00027385,7]
[364830122,1749263451401,-349.715407,0.00027385,7]
[364830123,1749263451411,-349.715407,0.00027385,7]
[364830124,1749263451421,-365845.16164199,0.00027386,7]
[364830125,1749263451430,-151.0,0.00027386,7]
[364830126,1749263451439,-170.485678,0.00027386,7]
[364830127,1749263451450,-170.485678,0.00027386,7]
[364830128,1749263451460,-151.0,0.00027386,7]
[364830129,1749263451470,-151.0,0.00027386,7]
[364830130,1749263451481,-151.0,0.00027386,7]
[364830131,1749263451491,-151.0,0.00027386,7]
[364830132,1749263451500,-151.0,0.00027386,7]
[364830133,1749263451510,-151.0,0.00027386,7]
[364830134,1749263451521,-151.0,0.00027386,7]
[364830135,1749263451530,-151.0,0.00027386,7]
[364830136,1749263451540,-151.0,0.00027386,7]
[364830137,1749263451550,-215.742022,0.00027386,7]
[364830138,1749263451560,-151.0,0.00027386,7]